Cogmind - Beta 17 *** ADVENTURER MODE // 2026.07.20 @ 02:39:53 Player: lqndo Result: Destroyed by S-27 Virus with Autogun Performance ------------- Evolutions (4) 2000 Regions Visited (7) 1400 Robots Destroyed (164) 820 Value Destroyed (4626) 4626 Prototype IDs (2) 40 Alien Tech Used (0) 0 Bonus (-21) -21 TOTAL SCORE: 8865 Bonus ------- Friendly Fire -21 Cogmind --------- Core Integrity 0/850 Matter 300/300 Energy 98/100 System Corruption 5% Temperature Cool (0) Movement Core (50) Location -6/Factory Parts ------- > --- POWER (1) -------- (None) > --- PROPULSION (4) --- (None) > --- UTILITY (7) ------ (None) > --- WEAPON (3) ------- (None) > --- INVENTORY (5) ---- Core Analyzer Hacking Suite Heavy Plasma Cannon Autogun Gauss Rifle Peak State ------------ > --- POWER ------------ Improved Deuterium Engine > --- PROPULSION ------- Carbon-fiber Leg Carbon-fiber Leg Carbon-fiber Leg Carbon-fiber Leg > --- UTILITY ---------- Power Amplifier Improved Heat Sink Large Storage Unit Energy Well Target Analyzer Reaction Control System Improved Reaction Control System > --- WEAPON ----------- Field Laser Heavy Laser Heavy Plasma Cannon > --- INVENTORY -------- Light Angular Momentum Engine Coolant Injector Core Analyzer Matter Filter Particle Charger Hacking Suite Arc Projector Heavy Laser Autogun Autogun Gauss Rifle Gauss Rifle Coil Gun Improved Datajack [Rating: 58] Favorites ----------- Power Ion Engine Engine Ion Engine Propulsion Light Treads Treads Light Treads Leg Aluminum Leg Utility Humpback Device Improved Heat Sink Storage Humpback Processor Improved Signal Interpreter Protection Hardened Medium Armor Plating Weapon Grenade Launcher Energy Gun Pulse Rifle Energy Cannon Heavy Plasma Cannon Ballistic Gun Assault Rifle Ballistic Cannon Flak Cannon Launcher Grenade Launcher Impact Weapon Makeshift Hammer Build | -11 -10 -10 -10 -9 -8 -7 -6 ------- Run | Yrd Mat Min Exi Min Mat Fac Fac Slots Evolved 8 | . . . . . 4 2 2 Power . | . . . . . . . . Propulsion 2 | . . . . . 2 . . Utility 5 | . . . . . 2 2 1 Weapon 1 | . . . . . . . 1 Parts Attached 89 | 7 2 5 3 4 23 22 23 Power 9 | 1 . . . 1 5 1 1 Engine 9 | 1 . . . 1 5 1 1 Core . | . . . . . . . . Reactor . | . . . . . . . . Propulsion 18 | 2 . . . 2 7 2 5 Treads 8 | 2 . . . . 4 2 . Leg 10 | . . . . 2 3 . 5 Wheel . | . . . . . . . . Hover . | . . . . . . . . Flight . | . . . . . . . . Utility 29 | 2 2 . 3 . 2 12 8 Device 16 | 1 . . 1 . 2 7 5 Storage 6 | 1 1 . 2 . . 1 1 Processor 2 | . . . . . . 1 1 Hackware . | . . . . . . . . Protection 5 | . 1 . . . . 3 1 Artifact . | . . . . . . . . Weapon 33 | 2 . 5 . 1 9 7 9 Energy Gun 18 | 1 . 1 . . 6 5 5 Energy Cannon 2 | . . . . . . 1 1 Ballistic Gun 4 | 1 . . . . . . 3 Ballistic Cannon 2 | . . . . . 2 . . Launcher 6 | . . 3 . 1 1 1 . Special Weapon . | . . . . . . . . Impact Weapon 1 | . . 1 . . . . . Slashing Weapon . | . . . . . . . . Piercing Weapon . | . . . . . . . . Special Melee Weapon . | . . . . . . . . Unidentified Prototypes 2 | . . . . . 2 . . Parts Lost 62 | . . 2 . 4 10 22 24 Power 9 | . . . . 1 2 4 2 Propulsion 18 | . . . . 2 5 5 6 Utility 19 | . . . . . . 10 9 Weapon 16 | . . 2 . 1 3 3 7 Highest Loss Streak 17 | . . 2 . 3 6 17 10 To Critical Strikes . | . . . . . . . . Average Backups 16 | 2 8 14 11 11 25 23 12 Power 2 | . 2 2 1 2 4 3 . Propulsion . | 1 2 2 1 . . 1 . Utility 7 | . 2 6 5 6 11 10 4 Weapon 5 | . 1 3 1 2 9 7 6 Tool/Special . | . . . . . . . . Unused Backups 40 | . 5 2 3 . 7 11 12 Power 10 | . 2 . 1 . 2 3 2 Propulsion . | . . . . . . . . Utility 17 | . 1 2 2 . 2 6 4 Weapon 12 | . 2 . . . 3 2 5 Tool/Special 1 | . . . . . . . 1 Average Slot Usage (%) 85 | . 98 99 87 84 85 85 71 Engine 10 | . 13 14 13 13 8 6 4 Treads 15 | . 27 28 28 . 12 25 2 Leg 11 | . . . . 27 19 . 15 Device 10 | . 4 . 1 . 17 19 17 Storage 11 | . 17 28 14 14 9 6 7 Processor 1 | . . . . . . 4 3 Protection 1 | . 6 . . . . 5 1 Energy Gun 4 | . 14 5 . . 6 9 8 Ballistic Cannon 2 | . . . . . 7 2 . Launcher 12 | . . 21 28 23 4 . . Impact Weapon 1 | . . . . 4 . . . Peak Build Rating 58 | 9 9 12 9 12 33 46 58 Average Rating 21 | 5 7 8 8 9 25 37 41 On Entrance 14 | . 9 8 9 9 10 33 37 Avg Prop Armor Cover (%) 7 | . . . . 7 . . . Naked Turns 106 | . . . . . . . 106 Heaviest Build 236 | 14 33 36 211 211 222 236 57 Greatest Support 86 | 40 40 40 40 40 86 86 60 Greatest Overweight (x) 21 | . . . 5 21 21 3 13 Average Overweight (x) 2 | . . . 2 11 3 1 . Largest Inventory Capacity 35 | 8 15 15 35 35 35 35 15 Average Capacity 28 | 7 9 15 31 35 35 25 13 Most Carried 35 | 5 15 15 15 18 34 35 15 Average Carried 17 | 3 8 14 12 12 26 23 12 Final Capacity 35 | 8 15 15 35 35 35 15 5 Final Carried 33 | 4 15 14 12 17 33 15 5 Scrap Suit Usage (%) 12 | . . . . . . 37 38 Parts Cannibalized 10 | . . . . . . 8 2 Class Distribution -------------------- 73% | Hauler-Mutant 21% | Mutant Dominant Class ---------------- Mutant | -10/Materials Mutant | -10/Mines Hauler-Mutant | -10/Exiles Hauler-Mutant | -9/Mines Hauler-Mutant | -8/Materials Hauler-Mutant | -7/Factory Scavenger-Gunner | -6/Factory Resources | -11 -10 -10 -10 -9 -8 -7 -6 ----------- Run | Yrd Mat Min Exi Min Mat Fac Fac Matter Collected 3246 | 276 124 214 162 332 592 1053 493 Remotely 112 | . . . . . . 112 . Salvage Created 5244 | 95 392 136 . 212 1143 2352 914 Parts 285 | 7 29 7 . 28 73 99 42 Haulers Intercepted 1 | . . . . . . 1 . Recyclers Shooed 4 | . 1 . . . 1 1 1 Parts Field Recycled . | . . . . . . . . Retrieved Matter . | . . . . . . . . Parts Self-Destructed . | . . . . . . . . Prevented . | . . . . . . . . Parts Restored . | . . . . . . . . Kills | -11 -10 -10 -10 -9 -8 -7 -6 ------- Run | Yrd Mat Min Exi Min Mat Fac Fac Combat Hostiles Destroyed 121 | . 15 11 . 15 28 34 18 Melee 2 | . . 1 . 1 . . . Guns 50 | . 15 2 . . 6 15 12 Cannons 17 | . . . . . 10 7 . AOE 45 | . . 8 . 13 12 6 6 Classes Destroyed 16 | 2 3 2 . 4 2 3 . Worker 8 | . . . . 1 1 5 1 Builder 5 | . . . . 1 1 3 . Tunneler 6 | 2 . . . 3 . 1 . Hauler 1 | . . . . . . 1 . Recycler 19 | 1 1 . . . 9 7 1 Mechanic 1 | . . . . . . 1 . Watcher 9 | . 2 . . . 3 4 . Swarmer 41 | . 12 3 . 4 15 . 7 Grunt 44 | . 3 2 . 7 6 19 7 Brawler 3 | . . . . 1 . 1 1 Duelist 2 | . . . . 2 . . . Sentry 9 | . . . . . 6 2 1 Demolisher 1 | . . 1 . . . . . Hunter 4 | . . . . . 1 3 . Programmer 11 | . . . . . . 9 2 Assembled 6 | . . 5 . 1 . . . Best Kill Streak 7 | 3 4 5 . 5 6 5 7 Combat Bots Only 7 | . 3 5 . 4 4 4 7 Max Kills in Single Turn 5 | 1 1 5 . 4 4 3 2 Gunslinging . | . . . . . . . . Exploded 5 | . . 5 . 4 4 2 2 Melee 1 | . . 1 . 1 . . . Uniques/NPCs Destroyed . | . . . . . . . . Combat | -11 -10 -10 -10 -9 -8 -7 -6 -------- Run | Yrd Mat Min Exi Min Mat Fac Fac Hostile Shots Fired 870 | . 59 29 . 36 165 238 343 Missed 296 | . 15 9 . 15 48 72 137 Hits 574 | . 44 20 . 21 117 166 206 Melee 7 | . . . . 3 . . 4 Projectile 567 | . 44 20 . 18 117 166 202 AOE 10 | . . 10 . . . . . Critical Strikes 18 | . . . . 1 6 7 4 Damage Taken 7252 | . 265 393 . 427 1257 2006 2904 Core 1282 | . 49 57 . 65 94 161 856 Absorbed by Shields . | . . . . . . . . Redirected to Shielding 159 | . 6 . . . . 53 100 Ignored by Resistances 2171 | . 90 107 . 129 361 655 829 Regen/Repaired (Parts) 134 | . 49 . . . . 74 11 Core Remaining (%) 72 | 100 . . . 31 82 77 . Volleys Fired 328 | 6 40 12 . 20 66 127 57 Largest 3 | 2 2 2 . 2 2 2 3 Hottest 222 | 60 60 70 . 60 119 119 222 Shots Fired 654 | 12 78 21 . 36 121 233 153 Gun 444 | 12 78 7 . . 43 161 143 Cannon 130 | . . . . . 64 61 5 Launcher 80 | . . 14 . 36 14 11 5 Special . | . . . . . . . . Kinetic 215 | 6 40 . . . 64 56 49 Thermal 225 | 6 38 . . . 32 115 34 Explosive 72 | . . 14 . 36 14 3 5 Electromagnetic 142 | . . 7 . . 11 59 65 Robot Hit Streak 45 | 4 11 13 . 30 27 45 23 Robot Miss Streak 4 | 1 4 1 . 1 3 3 3 Penetration Max . | . . . . . . . . Secondary Targets 7 | . 2 . . . . 1 4 Max Gunslinging Chain 1 | . 1 . . . . 1 1 Shots Hit Robots 489 | 9 54 14 . 25 85 180 122 Core Hits 332 | 4 25 30 . 34 93 83 63 Critical Kills 3 | . 1 1 . . . . 1 Critical Parts Destroyed 1 | . . . . . . . 1 Critical Strikes 18 | . 1 1 . . 1 11 4 Burn 8 | . . . . . 1 5 2 Destroy 3 | . 1 . . . . . 2 Blast 5 | . . . . . . 5 . Corrupt 1 | . . . . . . 1 . Smash 1 | . . 1 . . . . . Melee Attacks 12 | . . 1 . 4 . 7 . Impact 12 | . . 1 . 4 . 7 . Slashing . | . . . . . . . . Piercing . | . . . . . . . . Sneak Attacks 2 | . . . . . . 2 . Combat Hostiles . | . . . . . . . . Follow-up Attacks . | . . . . . . . . Damage Inflicted 13286 | 105 668 862 . 1788 2632 4679 2552 Guns 5520 | 105 668 73 . . 534 2357 1783 Cannons 2293 | . . . . . 1225 939 129 Explosions 5115 | . . 759 . 1632 873 1223 628 Melee 345 | . . 30 . 156 . 159 . Ramming 13 | . . . . . . 1 12 Kinetic 3176 | 61 349 . . . 1225 848 693 Thermal 3550 | 44 319 35 . 55 407 2019 671 Explosive 4059 | . . 724 . 1577 873 355 530 Electromagnetic 2143 | . . 73 . . 127 1297 646 Impact 345 | . . 30 . 156 . 159 . Slashing . | . . . . . . . . Piercing . | . . . . . . . . Highest Corruption 5 | . . . . . . 5 5 Average Corruption 3 | . . . . . . 3 4 Corruption Purged 4 | . . . . . . 4 . Corruption Blocked . | . . . . . . . . Effects 106 | . . . . . . 79 27 Message Errors 27 | . . . . . . 19 8 Matter Fused 28 | . . . . . . 23 5 Heat Flow Errors 11 | . . . . . . 9 2 Energy Discharges 10 | . . . . . . 8 2 Parts Rejected 1 | . . . . . . 1 . Parts Fused 2 | . . . . . . 2 . Data Loss (minor) 15 | . . . . . . 8 7 Data Loss (major) 4 | . . . . . . 3 1 Misfires 5 | . . . . . . 4 1 Alerts 1 | . . . . . . 1 . Weapon Failures 2 | . . . . . . 1 1 Overload Shots . | . . . . . . . . Overflow Damage 296 | . . 9 . 12 55 152 68 Projectiles 3 | . . . . . . . 3 Explosions 212 | . . 9 . 10 55 73 65 Melee 81 | . . . . 2 . 79 . Knockbacks 29 | . . . . . 20 9 . Impact 1 | . . . . . . 1 . Kinetic 27 | . . . . . 19 8 . Secondary 1 | . . . . . 1 . . Self-Inflicted Damage 637 | . . . . 237 . 268 132 Shots 29 | . . . . 14 . 12 3 Rammed 4 | . . . . . . . 4 Targets Rammed 6 | . . . . . . 2 4 Kicked . | . . . . . . . . Crushed 2 | . . . . . . 2 . Highest Temperature 268 | . 18 51 . 12 24 268 230 Average Temperature 58 | . 12 18 . 7 5 66 63 Received Heat Transfer 2004 | . 30 33 . 78 594 657 612 Siege Activations . | . . . . . . . . Martial Activations . | . . . . . . . . Shielding Activations . | . . . . . . . . Robots Disrupted 2 | . . . . . . 1 1 Combat Hostiles 2 | . . . . . . 1 1 Robots Corrupted 6 | . . . . 1 . 5 . Combat Hostiles 5 | . . . . 1 . 4 . Parts Fried 10 | . . . . . 1 5 4 Impact Corruptions 4 | . . . . 1 . 3 . Robots Melted 2 | . . . . . . 2 . Combat Hostiles 2 | . . . . . . 2 . Parts Melted 18 | . . . . . . 14 4 Heat Transferred 7359 | 100 725 50 . 50 962 4161 1311 Parts Sabotaged . | . . . . . . . . Parts Stolen . | . . . . . . . . Parts Stripped . | . . . . . . . . Power Chain Reactions 8 | . . 1 . . . 5 2 Alert | -11 -10 -10 -10 -9 -8 -7 -6 ------- Run | Yrd Mat Min Exi Min Mat Fac Fac Maximum Alert Level . | . . . . . . . . Low Security (%) 100 | 100 100 100 . 100 100 100 100 Level 1 . | . . . . . . . . Level 2 . | . . . . . . . . Level 3 . | . . . . . . . . Level 4 . | . . . . . . . . Level 5 . | . . . . . . . . High Security . | . . . . . . . . Max Security . | . . . . . . . . Peak Influence 183 | 10 183 141 . 111 151 125 109 Initial 13 | . . 13 . . . . . Average 22 | 1 104 58 . 8 23 18 27 Influence Increases 3767 | 15 420 220 . 502 886 1154 570 Destroy 0b10 Robot/C 2300 | . 300 120 . 280 560 680 360 Destroy 0b10 Robot/NC 245 | 15 15 . . 25 70 110 10 Destroy Leader 540 | . 64 20 . 40 136 210 70 Successful Hack 18 | . 10 . . . 6 2 . Disable Machine 99 | . . 18 . 36 9 18 18 Destroy Structure 340 | . 1 62 . 121 75 59 22 Lose Combat Pursuer 225 | . 30 . . . 30 75 90 Influence Decreases 3727 | 15 380 210 50 502 886 1154 530 Entered New Map 77 | . . 27 50 . . . . Time Decay 3359 | 15 380 163 . 479 806 1112 404 Lost Part 291 | . . 20 . 23 80 42 126 Squads Dispatched 24 | . 2 . . . 4 14 4 Investigation 6 | . 2 . . . 2 1 1 Extermination 11 | . . . . . . 8 3 Reinforcement 6 | . . . . . 1 5 . Assault . | . . . . . . . . Garrison 1 | . . . . . 1 . . Intercept . | . . . . . . . . Searches Triggered . | . . . . . . . . Construction Impeded 3 | . . . . . 1 2 . Haulers Reinforced . | . . . . . . . . Active Scanning Responses . | . . . . . . . . Cargo Convoy Interrupts 1 | . . . . . . . 1 Stealth | -11 -10 -10 -10 -9 -8 -7 -6 --------- Run | Yrd Mat Min Exi Min Mat Fac Fac Distress Signals 6 | . 2 . . . 1 2 1 Communications Jammed . | . . . . . . . . Distress Signals . | . . . . . . . . Times Spotted 169 | . 26 10 . 15 33 44 41 Peak Tracking Total 10 | . 4 9 . 4 5 5 10 Tactical Retreats 10 | . 1 . . . 1 4 4 Traps | -11 -10 -10 -10 -9 -8 -7 -6 ------- Run | Yrd Mat Min Exi Min Mat Fac Fac Traps Triggered 4 | . 1 . . . . 1 2 Indirectly . | . . . . . . . . Trap Hack Attempts . | . . . . . . . . Triggered . | . . . . . . . . Disarmed . | . . . . . . . . Reprogrammed . | . . . . . . . . Reused . | . . . . . . . . Traps Extracted . | . . . . . . . . Installed . | . . . . . . . . Triggered . | . . . . . . . . Machines | -11 -10 -10 -10 -9 -8 -7 -6 ---------- Run | Yrd Mat Min Exi Min Mat Fac Fac Machines Disabled 11 | . . 2 . 4 1 2 2 Max in Single Turn 2 | . . 1 . 2 1 1 2 Machines Repaired . | . . . . . . . . Machines Dismantled . | . . . . . . . . Machines Sabotaged . | . . . . . . . . Overloaded Fab Kills . | . . . . . . . . Hacking | -11 -10 -10 -10 -9 -8 -7 -6 --------- Run | Yrd Mat Min Exi Min Mat Fac Fac Machines Accessed 26 | . 6 . 4 . 7 7 2 Terminals 14 | . 5 . . . 4 5 . Fabricators 2 | . . . . . . 1 1 Repair Stations 1 | . 1 . . . . . . Recycling Units 2 | . . . . . 1 1 . Scanalyzers 3 | . . . . . 2 . 1 Garrison Access . | . . . . . . . . Total Hacks 112 | . 21 . 49 . 27 13 2 Successful 85 | . 11 . 49 . 20 4 1 Failed 26 | . 10 . . . 6 9 1 Catastrophic 7 | . 2 . . . 3 2 . Database Lockouts 1 | . . . . . 1 . . Manual 31 | . 15 . . . 12 4 . Terminals 32 | . 15 . . . 7 10 . Fabricators 3 | . . . . . . 2 1 Repair Stations 6 | . 6 . . . . . . Recycling Units 7 | . . . . . 6 1 . Scanalyzers 15 | . . . . . 14 . 1 Garrison Access . | . . . . . . . . Terminal Hacks 58 | . 5 . 49 . 2 2 . Record 49 | . . . 49 . . . . Part Schematic 1 | . 1 . . . . . . Robot Analysis 2 | . 2 . . . . . . Open DSF 2 | . . . . . . 2 . Repair Station Index 1 | . 1 . . . . . . Alert Level 1 | . . . . . 1 . . Unreport Threat 1 | . . . . . 1 . . Surveillance Status 1 | . 1 . . . . . . Fabricator Hacks 3 | . . . . . . 2 1 Network Status 1 | . . . . . . . 1 Load Schematic 1 | . . . . . . 1 . Build 1 | . . . . . . 1 . Repair Station Hacks 6 | . 6 . . . . . . Scan Component 3 | . 3 . . . . . . Repair 3 | . 3 . . . . . . Recycling Unit Hacks 5 | . . . . . 5 . . Process 2 | . . . . . 2 . . Report Inventory 1 | . . . . . 1 . . Retrieve Matter 1 | . . . . . 1 . . Retrieve Components 1 | . . . . . 1 . . Scanalyzer 13 | . . . . . 13 . . Insert Component 5 | . . . . . 5 . . Analyze 6 | . . . . . 6 . . Retrieve Study 2 | . . . . . 2 . . Garrison Access Hacks . | . . . . . . . . Unauthorized Hacks . | . . . . . . . . Terminals . | . . . . . . . . Fabricators . | . . . . . . . . Repair Stations . | . . . . . . . . Recycling Units . | . . . . . . . . Scanalyzers . | . . . . . . . . Garrison Access . | . . . . . . . . Data Cores Recovered . | . . . . . . . . Used . | . . . . . . . . Hacking Detections 19 | . 5 . . . 7 5 2 Full Trace Events 6 | . 3 . . . 2 1 . Feedback Events . | . . . . . . . . Feedback Blocked . | . . . . . . . . Robot Schematics Acquired . | . . . . . . . . Robots Built . | . . . . . . . . Authchips . | . . . . . . . . Time . | . . . . . . . . Total Robot Build Rating . | . . . . . . . . Part Schematics Acquired 6 | . 1 . . . 5 . . Parts Built 2 | . . . . . . 2 . Authchips . | . . . . . . . . Time 51 | . . . . . . 51 . Total Part Build Rating 2 | . . . . . . 2 . Part Studies Acquired 2 | . . . . . 2 . . Parts Repaired 3 | . 3 . . . . . . Time 78 | . 78 . . . . . . Parts Recycled . | . . . . . . . . Recycled Matter 182 | . . . . . 182 . . Retrieved Matter 264 | . . . . . 264 . . Retrieved Components 4 | . . . . . 4 . . Parts Scanalyzed 5 | . . . . . 5 . . Part Schematics Acquired 5 | . . . . . 5 . . Parts Damaged . | . . . . . . . . Bothacking | -11 -10 -10 -10 -9 -8 -7 -6 ------------ Run | Yrd Mat Min Exi Min Mat Fac Fac Used RIF Installer . | . . . . . . . . Robots Hacked . | . . . . . . . . Non-combat . | . . . . . . . . Combat . | . . . . . . . . Robot Hacks Applied . | . . . . . . . . Relay Couplers Released . | . . . . . . . . Fabnet Peak Effective % . | . . . . . . . . Robots Rewired . | . . . . . . . . Allies Hacked . | . . . . . . . . Hacks Repelled . | . . . . . . . . Allies | -11 -10 -10 -10 -9 -8 -7 -6 -------- Run | Yrd Mat Min Exi Min Mat Fac Fac Total Allies . | . . . . . . . . Largest Group . | . . . . . . . . Highest-Rated Group . | . . . . . . . . Highest-Rated Ally . | . . . . . . . . Total Orders . | . . . . . . . . Ally Attacks . | . . . . . . . . Total Damage . | . . . . . . . . Kills . | . . . . . . . . Allies Corrupted . | . . . . . . . . Allies Melted . | . . . . . . . . Intel | -11 -10 -10 -10 -9 -8 -7 -6 ------- Run | Yrd Mat Min Exi Min Mat Fac Fac Active Infowar (turns) 9099 | 43 252 . 398 . 3741 4459 206 Sensors 4767 | . . . . . 191 4370 206 Terrain 4435 | 43 252 . 398 . 3740 2 . Jamming 2880 | . . . . . . 2679 201 Robot Analysis Total 2 | . 2 . . . . . . Derelict Logs Recovered 3 | . . 1 . 2 . . . Drone Launches . | . . . . . . . . Drone Recoveries . | . . . . . . . . Exploration | -11 -10 -10 -10 -9 -8 -7 -6 ------------- Run | Yrd Mat Min Exi Min Mat Fac Fac Turns Passed 20194 | 144 829 436 3246 5232 3744 5194 1369 Spaces Moved 5552 | 85 392 238 832 551 849 1653 952 Core 388 | 23 . . . . . . 365 Treads 3644 | 62 392 238 832 4 378 1653 85 Legs 1520 | . . . . 547 471 . 502 Wheels . | . . . . . . . . Hover . | . . . . . . . . Flight . | . . . . . . . . Fastest Speed 50 | 50 160 160 160 560 308 152 50 Average Speed 326 | 130 160 160 386 935 400 252 112 Slowest Speed 1590 | 160 160 160 560 1590 1590 390 700 Overloaded Moves . | . . . . . . . . Propulsion Burnouts . | . . . . . . . . Robots Hopped . | . . . . . . . . Potential Cave-ins . | . . . . . . . . Cave-ins Triggered . | . . . . . . . . Exploration Rate (%) 53 | 3 70 71 92 93 50 27 24 Regions Visited 7 Branch Regions 3 Pre-discovered Areas 3 | . . 1 1 1 . . . Known Exits Taken 1 | . . . . . . 1 . Unknown Exits Taken 6 | 1 1 1 1 1 1 . . Scrap Searched 2 | . . . . 2 . . . Spaces Dug 4 | . . . . . . 4 . Terrain Destroyed 424 | . . 90 . 170 83 57 24 Melee 4 | . . . . . . 4 . Projectile 12 | . . . . . 5 5 2 AOE 408 | . . 90 . 170 78 48 22 Terrain Rammed . | . . . . . . . . Walls Destroyed . | . . . . . . . . Machines Disabled . | . . . . . . . . Actions | -11 -10 -10 -10 -9 -8 -7 -6 --------- Run | Yrd Mat Min Exi Min Mat Fac Fac Total 6989 | 105 517 271 869 593 1071 2437 1126 Wait 757 | . 58 6 . 1 74 556 62 Move 5545 | 84 391 237 831 550 848 1652 952 Hop . | . . . . . . . . Pick Up 118 | 8 16 4 8 9 34 28 11 Fast Attach 37 | 3 5 . 2 . 7 9 11 Attach 51 | 4 . 2 1 4 11 17 12 Detach 13 | . . . 1 . 2 7 3 Swap 50 | . . 5 1 5 17 18 4 Drop 61 | . 7 4 14 . 12 14 10 Fire 328 | 6 40 12 . 20 66 127 57 Melee 12 | . . 1 . 4 . 7 . Ram 4 | . . . . . . . 4 Kick . | . . . . . . . . Crush 2 | . . . . . . 2 . Escape Stasis . | . . . . . . . . Rewire 11 | . . . 11 . . . . Trap . | . . . . . . . . Miscellaneous . | . . . . . . . . Route ------- -11/Scrapyard -10/Materials (discovered 4 exits: [*Mat x2] / [*Min x2]) -10/Mines -10/Exiles (discovered 2 exits: [*Min x2]) -9/Mines -8/Materials (discovered 2 exits: *Fac x2) -7/Factory (discovered 2 exits: *Fac / *Low) -6/Factory History --------- Turn | Location | Event 7 | -11/Scrapyard | Discovered new exit (range 16) 145 | -11/Scrapyard | Entered Materials 317 | -10/Materials | Build established: Mutant 521 | -10/Materials | Discovered new exit (range 8) 620 | -10/Materials | Discovered new exit (range 4) 671 | -10/Materials | Discovered new exit (range 13) 708 | -10/Materials | Repaired Assault Rifle 708 | -10/Materials | Repaired Ion Engine 734 | -10/Materials | Repaired Lgt. Treads 836 | -10/Materials | Discovered new exit (range 12) 974 | -10/Materials | Entered Mines 1027 | -10/Mines | A weapon hastily lodged in a ceiling crevice suddenly fell to the ground 1216 | -10/Mines | Found a Scrap Suit stashed away for nefarious purposes 1226 | -10/Mines | Found Scrap Suit 1300 | -10/Mines | Assembled infested the area 1301 | -10/Mines | Learned location of Mines (-9) 1329 | -10/Mines | Met 8R-AWN 1402 | -10/Mines | Discovered new exit (range 5) 1410 | -10/Mines | Entered Exiles 1462 | -10/Exiles | Welcomed by 8R-AWN 1489 | -10/Exiles | Met EX-HEX 1630 | -10/Exiles | Met EX-DEC 1696 | -10/Exiles | Visited The Gauntlet 1906 | -10/Exiles | Learned location of Zion (-7) 2203 | -10/Exiles | Discovered new exit (range 12) 2297 | -10/Exiles | Build established: Hauler-Mutant 2618 | -10/Exiles | Met EX-BIN 3861 | -10/Exiles | Discovered new exit (range 14) 4656 | -10/Exiles | Entered Mines 4685 | -9/Mines | Core integrity fell below 50% 4704 | -9/Mines | Met a Derelict bent on vengeance 4721 | -9/Mines | Lost 3 parts (1p2n) 6865 | -9/Mines | Discovered new exit (range 6) 7127 | -9/Mines | Learned 2 Materials zone layouts 8139 | -9/Mines | Excavation squad dispatched 8139 | -9/Mines | A large section of the Mines collapsed 9888 | -9/Mines | Entered Materials 9888 | -8/Materials | Evolved 4 slots: Propulsion x2, Utility x2 10835 | -8/Materials | Discovered new exit (range 3) 11294 | -8/Materials | Lost 3 parts (2n1w) 12283 | -8/Materials | Garrison activated, responded to threat 12369 | -8/Materials | Lost 6 parts (1p3n2w) 12768 | -8/Materials | Discovered new exit (range 12) 13135 | -8/Materials | Central database locked down 13632 | -8/Materials | Entered Factory 13632 | -7/Factory | Evolved 2 slots: Utility x2 16824 | -7/Factory | Lost 17 parts (3p3n8u3w) 17094 | -7/Factory | Build established: Mutant 18204 | -7/Factory | Discovered new exit (range 9) 18224 | -7/Factory | Identified exit to Factory 18290 | -7/Factory | Fabricated Lgt. Treads (x2) 18632 | -7/Factory | Discovered new exit (range 12) 18708 | -7/Factory | Identified exit to Lower Caves 18826 | -7/Factory | Entered another Factory area 18826 | -6/Factory | Evolved 2 slots: Utility x1, Weapon x1 19070 | -6/Factory | Destroyed 7 combat bots 19082 | -6/Factory | Lost 8 parts (1p1n3u3w) 19831 | -6/Factory | Build established: Scavenger-Gunner 19984 | -6/Factory | Cargo convoy interrupted 20039 | -6/Factory | Lost 10 parts (1p3n3u3w) 20054 | -6/Factory | Core integrity fell below 50% 20162 | -6/Factory | Core integrity fell below 20% 20195 | -6/Factory | Destroyed by S-27 Virus with Autogun Last Messages --------------- 20118_ Slammed into U-05 Engineer. 20120_ Acquired 5 matter. 20125_ Slammed into K-01 Serf. 20143_ Triggered Tesla Bomb Trap. 20143_ A bubble of electromagnetic force engulfs the area. 20143_ K-01 Serf destroyed. 20144_ U-05 Engineer lays Concrete. 20147_ U-05 Engineer repairs door. 20149_ U-05 Engineer lays Concrete. 20157_ System corrupted: Component data lost. 20158_ K-01 Serf cleans the Fusion Modulator. 20161_ K-01 Serf cleans the Fabricator. 20161_ K-01 Serf cleans the Fusion Modulator. 20165_ K-01 Serf cleans the Fabricator. 20174_ 91OB31FT ZW5/K6QBWUR =H8H=BCJ G 20189_ System corrupted: Component data lost. 20192_ M-28 Smith repairs S-27 Virus VTOL Module. Map ----- +----------------------------------------------------+ | ????????????????# // | | ????????????????# // """ | | ????????????????# """ | | ????????????????# """ | | ????????????????# #### ########### | | ????????????????# """ """ #??# #?????????# | | ????????????????# """ """ #??# #?????????# | | ????????????????# """ """ #??# #????????## | | ????????????????# #??#+#????????# | | ????????????????# """ #?????????????#T | | ????????????????# """ #?????????????## | | ????????????????# """ =!! #??????????????# | | ????????????????# =! #??????????????# | | ????????????????# """ =! #??????????????# | | ???????????###### """ #??????????????# | | ??????????+ """s +??????????????# | | ??????????????### s #??????????????# | | ????????????????# """ """ #??????????????# | | ????????????????# """s""" #??????????????# | | ?????????######## """ """ #??????????????# | | ??????? #??????????????# | | ??????? #??????????????# | | ??????? #??????????????# "" | | ??????? k #??????????????# ""F | | ???????? #??????????????# "" | | ????????#### ####+##### @ #??????????????# | | ???????????# ??????????# #??????????????# | | ???????????????????????# ???????????? """ | | ???????????????????????# ???????? """ | | ???????????????????????# ?????? """ | | ???????????????????????#u """ """ ???? ? | | ???????????????????????+ """ """ ??? ?? | | ???????????????????????### """ """??????? ??? | | ?????????????????????????? ? ?????????????? ? | | ?????????????????????????? ??? ????????????? ?? | | ?????????????????????????? k???????????????????? | | ?????????????????????????? ???????????????????? | | ?????????????????????????? ???????????????????? | | ??????????????????????????R ???????????????????? | | ??????????????????????????####???????????????????? | | ?????????????????????????????????????????????????? | | ?????????????????????????????????????????????????? | | ?????????????????????????????????????????????????? | | ?????????????????????????????????????????????????? | | ?????????????????????????????????????????????????? | | ?????????????????????????????????????????????????? | | ?????????????????????????????????????????????????? | | ?????????????????????????????????????????????????? | | ?????????????????????????????????????????????????? | | ?????????????????????????????????????????????????? | +----------------------------------------------------+ Best States ------------- Heat Dissipation 51 Energy Generation 18 Energy Capacity 640 Matter Stores 300 Matter Capacity 300 Sight Range 16 Robot Scan Range 15 Terrain Scan Range 16 Terrain Scan Density 10 Jamming Range 12 Power Amplification 20 Armor Coverage 375 Resistance: KI 20 Resistance: TH 30 Resistance: EX 20 Resistance: EM 20 Resistance: I 20 Resistance: S 20 Resistance: P 20 Power Shielding 33 Propulsion Shielding 33 Utility Shielding 66 Evasion (%) 65 Target Analysis 5 Recoil Reduction 4 Particle Charging 15 Offensive Hacking 10 Item Schematics ----------------- Hcp. Storage Unit | -10/Materials | Hacked Adv. EMP Blaster | -8/Materials | Scanalyzed Lgt. Treads | -8/Materials | Scanalyzed Sensor Array | -8/Materials | Scanalyzed Hrd. Medium Armor Plating | -8/Materials | Scanalyzed Deuterium Engine | -8/Materials | Scanalyzed Robot Schematics ------------------ None Fabricated ------------ Lgt. Treads | x2 | -7/Factory Repaired ---------- Lgt. Treads | 65% | -10/Materials Studied --------- Grenade Launcher | -8/Materials | Hacked Flak Cannon | -8/Materials | Hacked Alien Tech Used ----------------- None Achievements -------------- I Survived The Infestation Packrat Quick And Dirty Challenges ------------ None Game ------ Seed OmegaInertialAxe Manual? 0 Play Time 02:08:38 Cumulative 17.1 hours Start 2026.07.19 @ 18:52:51 End 2026.07.20 @ 02:39:53 Sessions 7 Manual Loads 0 Difficulty Adventurer Special Mode None Game No. 10 Rogue 0 Adventurer 10 Explorer 0 Win Type - Total 1 Types 1/0/0/0/0/0/0/0/0/0 Lore% 15 Gallery% 18 Achievement% 20 Wizard Run 0 Options --------- Layout 2 ASCII 0 Keyboard 0 Movement Arrows Keybinds 0 Fullscreen 1 Font 24/Tallcaps Map View 50x44 Zoom Use 1% Tactical HUD 1 Map Filters NONE Filters NONE Steam 1 RUN: 21fdae05-4820-46ca-8960-5868f757411e